Cogmind - Beta 14 @@@ ROGUE MODE // 2024.08.22 @ 18:02:51 Player: cabin Result: Destroyed by S-10 Pest with Light Assault Rifle Performance ------------- Evolutions (1) 500 Regions Visited (2) 400 Robots Destroyed (7) 35 Value Destroyed (151) 151 Prototype IDs (2) 40 Alien Tech Used (0) 0 Bonus (0) 0 TOTAL SCORE: 1126 Bonus ------- None Cogmind --------- Core Integrity 0/400 Matter 92/300 Energy 35/100 System Corruption 2% Temperature Cool (76) Movement Core (50) Location -9/Materials Parts ------- > --- POWER (2) -------- (None) > --- PROPULSION (2) --- (None) > --- UTILITY (2) ------ Signal Interpreter > --- WEAPON (3) ------- Spread Laser > --- INVENTORY (5) ---- Light Treads Light Treads Small Battery (100) Peak State ------------ > --- POWER ------------ (None) > --- PROPULSION ------- Light Treads Compact Wheel > --- UTILITY ---------- Signal Interpreter Seismic Detector > --- WEAPON ----------- Small Laser Assault Rifle Grenade Launcher > --- INVENTORY -------- Light Treads Light Treads Small Battery [Rating: 7] Favorites ----------- Power Light Ion Engine Engine Light Ion Engine Propulsion Compact Wheel Treads Light Treads Wheel Compact Wheel Utility Seismic Detector Device Seismic Detector Storage Small Battery Processor Signal Interpreter Weapon Assault Rifle Energy Gun Small Laser Ballistic Gun Assault Rifle Launcher Grenade Launcher Build | -11 -10 -9 ------- Run | Yrd Mat Mat Slots Evolved 2 | . . 2 Power 1 | . . 1 Propulsion . | . . . Utility . | . . . Weapon 1 | . . 1 Parts Attached 17 | 9 5 3 Power 2 | 2 . . Engine 2 | 2 . . Core . | . . . Reactor . | . . . Propulsion 5 | 4 1 . Treads 3 | 2 1 . Leg . | . . . Wheel 2 | 2 . . Hover . | . . . Flight . | . . . Utility 4 | . 3 1 Device 2 | . 1 1 Storage 1 | . 1 . Processor 1 | . 1 . Hackware . | . . . Protection . | . . . Artifact . | . . . Weapon 6 | 3 1 2 Energy Gun 3 | 1 . 2 Energy Cannon . | . . . Ballistic Gun 2 | 2 . . Ballistic Cannon . | . . . Launcher 1 | . 1 . Special Weapon . | . . . Impact Weapon . | . . . Slashing Weapon . | . . . Piercing Weapon . | . . . Special Melee Weapon . | . . . Unidentified Prototypes . | . . . Parts Lost 7 | . 1 6 Power 1 | . 1 . Propulsion 2 | . . 2 Utility 1 | . . 1 Weapon 3 | . . 3 Highest Loss Streak 6 | . 1 6 To Critical Strikes . | . . . Average Slot Usage (%) 62 | . 69 41 Engine 1 | . 2 . Treads 2 | . . 5 Wheel 21 | . 27 4 Device 6 | . 6 7 Storage 2 | . 3 . Processor 3 | . . 11 Energy Gun 1 | . . 5 Ballistic Gun 11 | . 14 5 Launcher 10 | . 13 2 Peak Build Rating 7 | 5 6 7 Average Rating 4 | 3 4 3 On Entrance 3 | . 5 5 Naked Turns . | . . . Heaviest Build 9 | 6 9 7 Greatest Support 40 | 40 20 20 Greatest Overweight (x) 2 | 1 2 . Average Overweight (x) . | . 1 . Largest Inventory Capacity 5 | 5 5 5 Average Capacity 5 | 5 5 5 Most Carried 5 | 3 5 4 Average Carried 3 | 1 3 3 Final Capacity 5 | 5 5 5 Final Carried 5 | 2 5 3 Class Distribution -------------------- 94% | Mutant 5% | Gunner Dominant Class ---------------- Mutant | -10/Materials Mutant | -9/Materials Resources | -11 -10 -9 ----------- Run | Yrd Mat Mat Matter Collected 186 | 101 65 20 Remotely . | . . . Salvage Created 180 | 35 65 80 Parts 11 | 4 3 4 Haulers Intercepted . | . . . Recyclers Shooed . | . . . Parts Field Recycled . | . . . Retrieved Matter . | . . . Parts Self-Destructed . | . . . Prevented . | . . . Kills | -11 -10 -9 ------- Run | Yrd Mat Mat Combat Hostiles Destroyed 5 | . 2 3 Melee 2 | . . 2 Guns 1 | . . 1 AOE 2 | . 2 . Classes Destroyed 4 | 1 1 2 Tunneler 2 | 2 . . Swarmer 2 | . . 2 Grunt 2 | . 2 . Brawler 1 | . . 1 Best Kill Streak 2 | 2 2 2 Combat Bots Only 2 | . 2 2 Max Kills in Single Turn 1 | 1 1 1 Gunslinging . | . . . Exploded 1 | . 1 . Melee 1 | . . 1 Uniques/NPCs Destroyed . | . . . Combat | -11 -10 -9 -------- Run | Yrd Mat Mat Hostile Shots Fired 141 | . 7 134 Missed 39 | . 1 38 Damage Taken 970 | . 150 820 Core 441 | . 37 404 Absorbed by Shields . | . . . Core Remaining (%) 92 | 100 85 . Volleys Fired 25 | 7 5 13 Largest 3 | 2 2 3 Hottest 90 | 60 50 90 Shots Fired 42 | 14 10 18 Gun 35 | 14 5 16 Cannon . | . . . Launcher 7 | . 5 2 Special . | . . . Kinetic 15 | 7 5 3 Thermal 20 | 7 . 13 Explosive 7 | . 5 2 Electromagnetic . | . . . Robot Hit Streak 5 | 3 5 2 Robot Miss Streak 2 | 1 1 2 Penetration Max . | . . . Secondary Targets 1 | . . 1 Max Gunslinging Chain 1 | . . 1 Shots Hit Robots 16 | 6 6 4 Core Hits 17 | 2 8 7 Critical Kills . | . . . Critical Parts Destroyed . | . . . Critical Strikes . | . . . Melee Attacks . | . . . Impact . | . . . Slashing . | . . . Piercing . | . . . Sneak Attacks . | . . . Combat Hostiles . | . . . Follow-up Attacks . | . . . Damage Inflicted 506 | 70 283 153 Guns 148 | 70 54 24 Cannons . | . . . Explosions 306 | . 201 105 Melee . | . . . Ramming 52 | . 28 24 Kinetic 104 | 37 54 13 Thermal 44 | 33 . 11 Explosive 306 | . 201 105 Electromagnetic . | . . . Impact . | . . . Slashing . | . . . Piercing . | . . . Highest Corruption 2 | . . 2 Average Corruption 1 | . . 1 Corruption Purged . | . . . Corruption Blocked . | . . . Effects 2 | . . 2 Message Errors 2 | . . 2 Overload Shots . | . . . Overflow Damage . | . . . Projectiles . | . . . Explosions . | . . . Melee . | . . . Knockbacks . | . . . Impact . | . . . Kinetic . | . . . Secondary . | . . . Self-Inflicted Damage 68 | . 57 11 Shots 2 | . 2 . Rammed 16 | . 9 7 Targets Rammed 16 | . 9 7 Kicked . | . . . Crushed . | . . . Highest Temperature 76 | 20 . 76 Average Temperature 31 | 20 . 33 Received Heat Transfer 138 | . 36 102 Siege Activations . | . . . Robots Corrupted . | . . . Combat Hostiles . | . . . Parts Fried . | . . . Impact Corruptions . | . . . Robots Melted . | . . . Combat Hostiles . | . . . Parts Melted . | . . . Heat Transferred 100 | 75 . 25 Parts Sabotaged . | . . . Parts Stolen . | . . . Parts Stripped . | . . . Power Chain Reactions . | . . . Alert | -11 -10 -9 ------- Run | Yrd Mat Mat Peak Influence 144 | 10 144 95 Initial 6 | . 6 . Average 59 | 4 82 48 Maximum Alert Level . | . . . Low Security (%) 100 | 100 100 100 Level 1 . | . . . Level 2 . | . . . Level 3 . | . . . Level 4 . | . . . Level 5 . | . . . High Security . | . . . Max Security . | . . . Squads Dispatched 2 | . 1 1 Investigation 1 | . . 1 Extermination . | . . . Reinforcement 1 | . 1 . Assault . | . . . Garrison . | . . . Intercept . | . . . Searches Triggered . | . . . Construction Impeded . | . . . Haulers Reinforced . | . . . Active Scanning Responses . | . . . Cargo Convoy Interrupts . | . . . Stealth | -11 -10 -9 --------- Run | Yrd Mat Mat Distress Signals 1 | . 1 . Communications Jammed . | . . . Distress Signals . | . . . Times Spotted 13 | . 5 8 Peak Tracking Total 6 | . 4 6 Tactical Retreats 2 | . . 2 Traps | -11 -10 -9 ------- Run | Yrd Mat Mat Traps Triggered 2 | . 2 . Indirectly . | . . . Trap Hack Attempts . | . . . Triggered . | . . . Disarmed . | . . . Reprogrammed 6 | . 6 . Reused . | . . . Traps Extracted . | . . . Installed . | . . . Triggered . | . . . Machines | -11 -10 -9 ---------- Run | Yrd Mat Mat Machines Disabled . | . . . Max in Single Turn . | . . . Machines Repaired . | . . . Machines Dismantled . | . . . Machines Sabotaged . | . . . Overloaded Fab Kills . | . . . Hacking | -11 -10 -9 --------- Run | Yrd Mat Mat Machines Accessed 4 | . 3 1 Terminals 4 | . 3 1 Fabricators . | . . . Repair Stations . | . . . Recycling Units . | . . . Scanalyzers . | . . . Garrison Access . | . . . Total Hacks 7 | . 3 4 Successful 4 | . 3 1 Failed 3 | . . 3 Catastrophic 1 | . . 1 Database Lockouts . | . . . Manual . | . . . Terminals 7 | . 3 4 Fabricators . | . . . Repair Stations . | . . . Recycling Units . | . . . Scanalyzers . | . . . Garrison Access . | . . . Terminal Hacks 4 | . 3 1 Record 1 | . . 1 Prototype ID Bank 1 | . 1 . Emergency Access Points 1 | . 1 . Reprogram Traps 1 | . 1 . Fabricator Hacks . | . . . Repair Station Hacks . | . . . Recycling Unit Hacks . | . . . Scanalyzer . | . . . Garrison Access Hacks . | . . . Unauthorized Hacks . | . . . Terminals . | . . . Fabricators . | . . . Repair Stations . | . . . Recycling Units . | . . . Scanalyzers . | . . . Garrison Access . | . . . Data Cores Recovered . | . . . Used . | . . . Hacking Detections 2 | . 1 1 Full Trace Events 1 | . . 1 Feedback Events . | . . . Feedback Blocked . | . . . Robot Schematics Acquired . | . . . Robots Built . | . . . Authchips . | . . . Time . | . . . Total Robot Build Rating . | . . . Part Schematics Acquired . | . . . Parts Built . | . . . Authchips . | . . . Time . | . . . Total Part Build Rating . | . . . Parts Repaired . | . . . Time . | . . . Parts Recycled . | . . . Recycled Matter . | . . . Retrieved Matter . | . . . Retrieved Components . | . . . Parts Scanalyzed . | . . . Part Schematics Acquired . | . . . Parts Damaged . | . . . Bothacking | -11 -10 -9 ------------ Run | Yrd Mat Mat Used RIF Installer . | . . . Robots Hacked . | . . . Non-combat . | . . . Combat . | . . . Robot Hacks Applied . | . . . Relay Couplers Released . | . . . Fabnet Peak Effective % . | . . . Robots Rewired . | . . . Allies Hacked . | . . . Hacks Repelled . | . . . Allies | -11 -10 -9 -------- Run | Yrd Mat Mat Total Allies . | . . . Largest Group . | . . . Highest-Rated Group . | . . . Highest-Rated Ally . | . . . Total Orders . | . . . Ally Attacks . | . . . Total Damage . | . . . Kills . | . . . Allies Corrupted . | . . . Allies Melted . | . . . Intel | -11 -10 -9 ------- Run | Yrd Mat Mat Robot Analysis Total . | . . . Derelict Logs Recovered . | . . . Drone Launches . | . . . Drone Recoveries . | . . . Exploration | -11 -10 -9 ------------- Run | Yrd Mat Mat Turns Passed 794 | 156 467 171 Spaces Moved 656 | 130 369 157 Core 524 | 62 353 109 Treads 83 | 19 16 48 Legs . | . . . Wheels 49 | 49 . . Hover . | . . . Flight . | . . . Fastest Speed 50 | 50 100 50 Average Speed 103 | 90 117 83 Slowest Speed 160 | 160 160 160 Overloaded Moves . | . . . Propulsion Burnouts . | . . . Robots Hopped . | . . . Cave-ins Triggered . | . . . Exploration Rate (%) 19 | 3 37 17 Regions Visited 2 Branch Regions . Pre-discovered Areas . | . . . Known Exits Taken 1 | . 1 . Unknown Exits Taken 1 | 1 . . Scrap Searched . | . . . Spaces Dug . | . . . Terrain Destroyed 47 | . 32 15 Melee . | . . . Projectile . | . . . AOE 47 | . 32 15 Terrain Rammed . | . . . Walls Destroyed . | . . . Machines Disabled . | . . . Actions | -11 -10 -9 --------- Run | Yrd Mat Mat Total 722 | 151 391 180 Wait 4 | 3 1 . Move 654 | 129 368 157 Hop . | . . . Pick Up . | . . . Fast Attach 12 | 7 4 1 Attach 3 | 1 . 2 Detach 6 | 3 3 . Swap 2 | 1 1 . Drop . | . . . Fire 25 | 7 5 13 Melee . | . . . Ram 13 | . 6 7 Kick . | . . . Crush 3 | . 3 . Escape Stasis . | . . . Rewire . | . . . Trap . | . . . Miscellaneous . | . . . Route ------- -11/Scrapyard -10/Materials -9/Materials History --------- Turn | Location | Event 7 | -11/Scrapyard | Discovered new exit (range 16) 157 | -11/Scrapyard | Entered Materials 314 | -10/Materials | Build established: Mutant 546 | -10/Materials | Discovered new exit (range 16) 617 | -10/Materials | Identified exit to Materials 624 | -10/Materials | Entered another Materials area 624 | -9/Materials | Evolved 2 slots: Power x1, Weapon x1 731 | -9/Materials | Core integrity fell below 50% 760 | -9/Materials | Core integrity fell below 20% 765 | -9/Materials | Lost 6 parts (2n1u3w) 795 | -9/Materials | Destroyed by S-10 Pest with Light Assault Rifle Last Messages --------------- Slammed into S-10 Pest. S-10 Pest destroyed. Slammed into S-10 Pest. Seismic Detector destroyed. U-05 Engineer destroyed. K-01 Serf collects debris. JCHAKQE8FHMDIYKYBYPH6FSJJT MD0 K-01 Serf collects debris. Connecting with Terminal... >>Query(Repair Station) Self-contained repair facility capable of restoring the integrity of damaged components. Serious internal issues such as faulty prototypes and component deterioration are beyond the scope of repair. Advanced repair stations can complete complex tasks more quickly. ALERT: Suspicious activity at Terminal M008. Dispatching Investigation squad. Acquired Spread Laser. Map ----- +----------------------------------------------------+ | ??????????????????????????????? | | ??????????????????????????????? | | ??????????????????????????????? | | ??????????????????????????????? | | ??????????????????????????????? | | ??????????????????????????????? | | ??????????????????????????????? | | ??????????????????????????????? | | ??????????????????????????????? | | ??????????????????????????????? | | ??????????????????????????????? | | ??????????????????????????????? | | ??????????????????????????????? | | ??????????????????????????????? | | ??????????????????????????????? | | ??????????????????????????????? | | ??????????????????????????????? | | ??????????????????????????????? | | ??????????????????????????????? | | ??????????????????????????????? | | ??????????????????????????????? | | ??????????????????????????????? | | ?????????????#+#??????????????? | | ?????????????# #??????????????? | | ????########## #??????????????? | | ????# @ s # #??????????????? | | ????# """ # #????#######???? | | ????# """ # ###### #???? | | ????# """ # "" #???? | | ????#! + T #???? | | ????# """ # #???? | | ????# """ ####+### #???? | | ????# """ #? ?## ##???? | | ????# ## ??# #????? | | ????########### " ??# #????? | | ??????????????#""" ??# #????? | | ??????????????#""" ?# ###### | | ??????????????#""" ?# | | ??????????????? "" ?#% | | ?????????????????? ?# | | ?????????????????? ## ###### | | ?????????????????? ## #????? | | ?????????????????? ## #????? | | ??????????????????? ## #????? | | ????????????########?# #??""" | | ????????????# #### #?"""" | | ????????????# #?"""" | | ????????????# +?"""" | | ????????????#] #? | | ????????????# #### # | +----------------------------------------------------+ Best States ------------- Heat Dissipation 28 Energy Generation 10 Energy Capacity 200 Matter Stores 122 Matter Capacity 300 Sight Range 16 Terrain Scan Density 10 Evasion (%) 50 Recoil Reduction 2 Item Schematics ----------------- None Robot Schematics ------------------ None Fabricated ------------ Nothing Alien Tech Used ----------------- None Achievements -------------- Fist Fight Challenges ------------ None Game ------ Seed ActiveMetafieldSpecial Manual? 0 Play Time 00:17:38 Cumulative 0.8 hours Start 2024.08.22 @ 17:47:37 End 2024.08.22 @ 18:02:51 Sessions 2 Manual Loads 0 Difficulty Rogue Special Mode None Game No. 3 Rogue 2 Adventurer 1 Explorer 0 Win Type - Total 0 Types 0/0/0/0/0/0/0/0/0 Lore% 0 Gallery% 2 Achievement% 5 Wizard Run 0 Options --------- Layout 2 ASCII 0 Keyboard 1 Movement Arrows Keybinds 0 Fullscreen 1 Font 24/Smallcaps Map View 50x44 Zoom Use 10% Tactical HUD 0 Map Filters NONE Filters NONE Steam 1 RUN: ec75cde9-7c6d-484f-941d-6e3824319b09